Cogmind - Beta 15 @@@ ROGUE MODE // 2025.05.28 @ 17:12:32 // Winter2022/Polymind Player: Figgis Result: Destroyed by as-84633 with Assembled F-torch Performance ------------- Evolutions (0) 0 Regions Visited (2) 400 Robots Destroyed (6) 30 Value Destroyed (145) 145 Prototype IDs (0) 0 Alien Tech Used (0) 0 Bonus (1040) 1040 TOTAL SCORE: 1065 Bonus ------- Polymind Skill 1040 Cogmind --------- Core Integrity 0/250 Matter 100/100 Energy 50/50 System Corruption 0% Temperature Cool (20) Movement Hovering (60) Location -10/Mines Parts ------- > --- POWER (0) -------- (None) > --- PROPULSION (1) --- Assembled Hover Unit > --- UTILITY (0) ------ (None) > --- WEAPON (1) ------- Assembled F-torch > --- INVENTORY (1) ---- (None) Peak State ------------ > --- POWER ------------ Light Nuclear Core > --- PROPULSION ------- Aluminum Leg Aluminum Leg > --- UTILITY ---------- Improved Heat Sink > --- WEAPON ----------- Particle Gun > --- INVENTORY -------- (None) [Rating: 10] Favorites ----------- Power Light Nuclear Core Power Core Light Nuclear Core Propulsion Aluminum Leg Leg Aluminum Leg Hover Unit Assembled Hover Unit Utility Improved Heat Sink Device Improved Heat Sink Weapon Particle Gun Energy Gun Particle Gun Special Weapon Assembled F-torch Build | -11 -10 -10 ------- Run | Yrd Mat Min Slots Evolved . | . . . Power . | . . . Propulsion . | . . . Utility . | . . . Weapon . | . . . Parts Attached . | . . . Power . | . . . Engine . | . . . Core . | . . . Reactor . | . . . Propulsion . | . . . Treads . | . . . Leg . | . . . Wheel . | . . . Hover . | . . . Flight . | . . . Utility . | . . . Device . | . . . Storage . | . . . Processor . | . . . Hackware . | . . . Protection . | . . . Artifact . | . . . Weapon . | . . . Energy Gun . | . . . Energy Cannon . | . . . Ballistic Gun . | . . . Ballistic Cannon . | . . . Launcher . | . . . Special Weapon . | . . . Impact Weapon . | . . . Slashing Weapon . | . . . Piercing Weapon . | . . . Special Melee Weapon . | . . . Unidentified Prototypes . | . . . Parts Lost 4 | . . 4 Power 1 | . . 1 Propulsion 1 | . . 1 Utility 1 | . . 1 Weapon 1 | . . 1 Highest Loss Streak 4 | . . 4 To Critical Strikes . | . . . Average Backups . | . . . Power . | . . . Propulsion . | . . . Utility . | . . . Weapon . | . . . Tool/Special . | . . . Unused Backups . | . . . Power . | . . . Propulsion . | . . . Utility . | . . . Weapon . | . . . Tool/Special . | . . . Average Slot Usage (%) 95 | . 83 99 Core 17 | . 16 17 Leg 36 | . 33 36 Hover 3 | . . 4 Device 17 | . 16 18 Energy Gun 18 | . 16 18 Special Weapon 3 | . . 4 Peak Build Rating 10 | . 10 10 Average Rating 9 | . 8 9 On Entrance 3 | . . 10 Naked Turns 41 | . 36 5 Heaviest Build 9 | . 9 9 Greatest Support 20 | 3 20 20 Greatest Overweight (x) . | . . . Average Overweight (x) . | . . . Largest Inventory Capacity 1 | . 1 1 Average Capacity . | . . . Most Carried . | . . . Average Carried . | . . . Final Capacity 1 | . 1 1 Final Carried . | . . . Class Distribution -------------------- 90% | Grunt 5% | Troll 3% | Cogmind Dominant Class ---------------- Grunt | -10/Materials Grunt | -10/Mines Resources | -11 -10 -10 ----------- Run | Yrd Mat Min Matter Collected . | . . . Remotely . | . . . Salvage Created 155 | . . 155 Parts 7 | . 2 5 Haulers Intercepted . | . . . Recyclers Shooed . | . . . Parts Field Recycled . | . . . Retrieved Matter . | . . . Parts Self-Destructed . | . . . Prevented . | . . . Kills | -11 -10 -10 ------- Run | Yrd Mat Min Combat Hostiles Destroyed 6 | . 1 5 Guns 6 | . 1 5 Classes Destroyed 2 | . 1 1 Swarmer 3 | . . 3 Grunt 3 | . 1 2 Best Kill Streak 3 | . 1 3 Combat Bots Only 3 | . 1 3 Max Kills in Single Turn 1 | . 1 1 Gunslinging . | . . . Exploded . | . . . Melee . | . . . Uniques/NPCs Destroyed . | . . . Combat | -11 -10 -10 -------- Run | Yrd Mat Min Hostile Shots Fired 70 | . 5 65 Missed 17 | . 2 15 Hits 53 | . 3 50 Melee 1 | . . 1 Projectile 52 | . 3 49 Critical Strikes 2 | . . 2 Part Disruptions 4 | . . 4 Damage Taken 646 | . 31 615 Core 259 | . 10 249 Absorbed by Shields . | . . . Core Remaining (%) 100 | 100 . . Volleys Fired 28 | . 5 23 Largest 1 | . 1 1 Hottest 100 | . 65 100 Shots Fired 28 | . 5 23 Gun 27 | . 5 22 Cannon . | . . . Launcher . | . . . Special 1 | . . 1 Kinetic . | . . . Thermal 28 | . 5 23 Explosive . | . . . Electromagnetic . | . . . Robot Hit Streak 4 | . 3 4 Robot Miss Streak 2 | . 2 2 Penetration Max . | . . . Secondary Targets . | . . . Shots Hit Robots 16 | . 3 13 Core Hits 9 | . 1 8 Critical Kills . | . . . Critical Parts Destroyed . | . . . Critical Strikes . | . . . Melee Attacks . | . . . Impact . | . . . Slashing . | . . . Piercing . | . . . Sneak Attacks . | . . . Combat Hostiles . | . . . Follow-up Attacks . | . . . Damage Inflicted 252 | . 47 205 Guns 239 | . 47 192 Cannons . | . . . Explosions . | . . . Melee . | . . . Ramming . | . . . Kinetic . | . . . Thermal 252 | . 47 205 Explosive . | . . . Electromagnetic . | . . . Impact . | . . . Slashing . | . . . Piercing . | . . . Highest Corruption . | . . . Average Corruption . | . . . Corruption Purged . | . . . Corruption Blocked . | . . . Overload Shots . | . . . Overflow Damage . | . . . Projectiles . | . . . Explosions . | . . . Melee . | . . . Knockbacks . | . . . Impact . | . . . Kinetic . | . . . Secondary . | . . . Self-Inflicted Damage . | . . . Shots . | . . . Rammed . | . . . Targets Rammed . | . . . Kicked . | . . . Crushed . | . . . Highest Temperature 83 | . 43 83 Average Temperature 38 | . 32 41 Received Heat Transfer 474 | . 18 456 Siege Activations . | . . . Martial Activations . | . . . Shielding Activations . | . . . Robots Disrupted . | . . . Combat Hostiles . | . . . Robots Corrupted . | . . . Combat Hostiles . | . . . Parts Fried . | . . . Impact Corruptions . | . . . Robots Melted . | . . . Combat Hostiles . | . . . Parts Melted 1 | . . 1 Heat Transferred 635 | . 111 524 Parts Sabotaged . | . . . Parts Stolen . | . . . Parts Stripped . | . . . Power Chain Reactions . | . . . Alert | -11 -10 -10 ------- Run | Yrd Mat Min Maximum Alert Level . | . . . Low Security (%) 100 | 100 100 100 Level 1 . | . . . Level 2 . | . . . Level 3 . | . . . Level 4 . | . . . Level 5 . | . . . High Security . | . . . Max Security . | . . . Peak Influence 100 | . 20 100 Initial . | . . . Average 11 | . 4 13 Influence Increases 160 | . 40 120 Destroy 0b10 Robot/C 120 | . 20 100 Destroy Leader 20 | . . 20 Successful Hack 20 | . 20 . Influence Decreases 160 | . 40 120 Time Decay 160 | . 40 120 Squads Dispatched . | . . . Investigation . | . . . Extermination . | . . . Reinforcement . | . . . Assault . | . . . Garrison . | . . . Intercept . | . . . Searches Triggered . | . . . Construction Impeded . | . . . Haulers Reinforced . | . . . Active Scanning Responses . | . . . Cargo Convoy Interrupts . | . . . Stealth | -11 -10 -10 --------- Run | Yrd Mat Min Distress Signals . | . . . Communications Jammed . | . . . Distress Signals . | . . . Times Spotted 19 | . 3 16 Peak Tracking Total 5 | . 2 5 Tactical Retreats 3 | . . 3 Traps | -11 -10 -10 ------- Run | Yrd Mat Min Traps Triggered . | . . . Indirectly . | . . . Trap Hack Attempts . | . . . Triggered . | . . . Disarmed . | . . . Reprogrammed . | . . . Reused . | . . . Traps Extracted . | . . . Installed . | . . . Triggered . | . . . Machines | -11 -10 -10 ---------- Run | Yrd Mat Min Machines Disabled . | . . . Max in Single Turn . | . . . Machines Repaired . | . . . Machines Dismantled . | . . . Machines Sabotaged . | . . . Overloaded Fab Kills . | . . . Hacking | -11 -10 -10 --------- Run | Yrd Mat Min Machines Accessed 1 | . 1 . Terminals 1 | . 1 . Fabricators . | . . . Repair Stations . | . . . Recycling Units . | . . . Scanalyzers . | . . . Garrison Access . | . . . Total Hacks 6 | . 6 . Successful 3 | . 3 . Failed 3 | . 3 . Catastrophic . | . . . Database Lockouts . | . . . Manual 6 | . 6 . Terminals 6 | . 6 . Fabricators . | . . . Repair Stations . | . . . Recycling Units . | . . . Scanalyzers . | . . . Garrison Access . | . . . Terminal Hacks 3 | . 3 . Robot Analysis 2 | . 2 . Branch Access Points 1 | . 1 . Fabricator Hacks . | . . . Repair Station Hacks . | . . . Recycling Unit Hacks . | . . . Scanalyzer . | . . . Garrison Access Hacks . | . . . Unauthorized Hacks . | . . . Terminals . | . . . Fabricators . | . . . Repair Stations . | . . . Recycling Units . | . . . Scanalyzers . | . . . Garrison Access . | . . . Data Cores Recovered . | . . . Used . | . . . Hacking Detections 1 | . 1 . Full Trace Events . | . . . Feedback Events . | . . . Feedback Blocked . | . . . Robot Schematics Acquired . | . . . Robots Built . | . . . Authchips . | . . . Time . | . . . Total Robot Build Rating . | . . . Part Schematics Acquired . | . . . Parts Built . | . . . Authchips . | . . . Time . | . . . Total Part Build Rating . | . . . Parts Repaired . | . . . Time . | . . . Parts Recycled . | . . . Recycled Matter . | . . . Retrieved Matter . | . . . Retrieved Components . | . . . Parts Scanalyzed . | . . . Part Schematics Acquired . | . . . Parts Damaged . | . . . Bothacking | -11 -10 -10 ------------ Run | Yrd Mat Min Used RIF Installer . | . . . Robots Hacked 1 | . 1 . Non-combat . | . . . Combat 1 | . 1 . Robot Hacks Applied 1 | . 1 . find_shortcuts 1 | . 1 . Relay Couplers Released . | . . . Fabnet Peak Effective % . | . . . Robots Rewired . | . . . Allies Hacked . | . . . Hacks Repelled . | . . . Allies | -11 -10 -10 -------- Run | Yrd Mat Min Total Allies . | . . . Largest Group . | . . . Highest-Rated Group . | . . . Highest-Rated Ally . | . . . Total Orders . | . . . Ally Attacks . | . . . Total Damage . | . . . Kills . | . . . Allies Corrupted . | . . . Allies Melted . | . . . Intel | -11 -10 -10 ------- Run | Yrd Mat Min Active Infowar (turns) . | . . . Robot Analysis Total 4 | . 3 1 Derelict Logs Recovered . | . . . Drone Launches . | . . . Drone Recoveries . | . . . Exploration | -11 -10 -10 ------------- Run | Yrd Mat Min Turns Passed 1101 | 10 233 858 Spaces Moved 445 | 20 199 226 Core 72 | 20 42 10 Treads . | . . . Legs 289 | . 157 132 Wheels . | . . . Hover 84 | . . 84 Flight . | . . . Fastest Speed 50 | 50 50 50 Average Speed 97 | 50 105 94 Slowest Speed 120 | 50 120 120 Overloaded Moves . | . . . Propulsion Burnouts . | . . . Robots Hopped . | . . . Potential Cave-ins . | . . . Cave-ins Triggered . | . . . Exploration Rate (%) 30 | 3 32 55 Regions Visited 2 Branch Regions 1 Pre-discovered Areas . | . . . Known Exits Taken 1 | . 1 . Unknown Exits Taken 1 | 1 . . Scrap Searched . | . . . Spaces Dug . | . . . Terrain Destroyed . | . . . Melee . | . . . Projectile . | . . . AOE . | . . . Terrain Rammed . | . . . Walls Destroyed . | . . . Machines Disabled . | . . . Actions | -11 -10 -10 --------- Run | Yrd Mat Min Total 1082 | 19 217 846 Wait 611 | . 14 597 Move 443 | 19 198 226 Hop . | . . . Pick Up . | . . . Fast Attach . | . . . Attach . | . . . Detach . | . . . Swap . | . . . Drop . | . . . Fire 28 | . 5 23 Melee . | . . . Ram . | . . . Kick . | . . . Crush . | . . . Escape Stasis . | . . . Rewire . | . . . Trap . | . . . Miscellaneous . | . . . Route ------- -11/Scrapyard -10/Materials (discovered 2 exits: *Min x2) -10/Mines (discovered 3 exits: [*Mat x2] / [*Exi]) History --------- Turn | Location | Event 3 | -11/Scrapyard | Discovered new exit (range 14) 11 | -11/Scrapyard | Entered Materials 152 | -10/Materials | Identified exit to Mines 244 | -10/Materials | Entered Mines 269 | -10/Mines | Discovered new exit (range 7) 339 | -10/Mines | Assembled infested the area 991 | -10/Mines | Core integrity fell below 50% 996 | -10/Mines | Discovered new exit (range 11) 1039 | -10/Mines | Core integrity fell below 20% 1062 | -10/Mines | Lost 4 parts (1p1n1u1w) 1087 | -10/Mines | Deemed a non-threat by the Exiles lab entrance 1088 | -10/Mines | Discovered new exit (range 5) 1102 | -10/Mines | Destroyed by as-84633 with Assembled F-torch Last Messages --------------- squad. 00452_ K-01 Serf collects debris. 00454_ K-01 Serf destroyed. 00978_ U-05 Engineer destroyed. 00990_ K-01 Serf collects debris. 00996_ EXIT=FOUND 01017_ Lgt. Nuclear Core destroyed. 01022_ Imp. Heat Sink destroyed. 01030_ Particle Gun destroyed. 01031_ Aluminum Leg destroyed. 01034_ Released control of G-47 Trooper. 01035_ as-41656 sneak attacks. 01035_ G-47 Trooper destroyed. 01039_ Took control of as-23161. 01039_ Extracted analysis data for Assembled. 01068_ as-41656 sneak attacks. 01068_ T-07 Excavator destroyed. 01087_ "No threat detected, you may enter." 01088_ EXIT=FOUND 01099_ Critical hit (Burn: +80). Map ----- +----------------------------------------------------+ | %=!%==%*! #????## = ###????????? | | !%##### = ##???## % ##???????? | | ##???##%=%#??### #???????? | | ##?????#=%=#### ## #???????? | | #??????#==%!## !% #######???????? | | #??????#*%!! ##?????????????? | | #??????##%""" ####??????????????? | | %??????##! "" ##?????????????????? | | %%?????#=%!*= ##??????????????????? | | %<%????#!!=*!!#???????????????????? | | %%%????#!|%!!=##??????????????????? | | ####???##|!%!==#??????????????????? | | ????????##=|%%!#??????????????????? | | ?????????#%%!=!#??????????????????? | | ????????##%=%=%#??????????????????? | | ??#######*%%=%%#??????????????????? | | ??# ##=!%=%=!#?####?????????????? | | #??# !!%*!%### ##????????????? | | #??## |*%%!### #????????????? | | #???#####!=%#### < #????????????? | | ##??????##%%|%!* #????????????? | | #########=*####= ##????????????? | | =%=%====#??######?###?????????? | | ##########=*####?????## ###???????? | | #??# = #?????# a ###?????? | | ???# "" ####### ##a #?????? | | ???#% "" ####<#?????? | | ???# """ #########????#?????? | | ???#% #??????????????????? | | ???######T######??????????????????? | | ????????###???????????????????????? | | ??????????????????????????????????? | | | | | | | | | | | | | | | | | | | | | | | | | | | | | | | | | | | | | +----------------------------------------------------+ Best States ------------- Heat Dissipation 40 Energy Generation 20 Energy Capacity 110 Matter Stores 100 Matter Capacity 100 Sight Range 16 Terrain Scan Density 10 Evasion (%) 55 Item Schematics ----------------- None Robot Schematics ------------------ None Fabricated ------------ Nothing Repaired ---------- Nothing Alien Tech Used ----------------- None Achievements -------------- None Challenges ------------ None Polymind | -11 -10 -10 ---------- Run | Yrd Mat Min Hosts 2 | . 1 1 Combat Hostiles 2 | . 1 1 Allies . | . . . Unique Host Classes 2 | . 1 1 Average Host Suspicion 95 | . 100 94 Unsuspicious Activity 48 | . . 48 Returns to Shadow . | . . . Fuzzy Dispatches . | . . . Protomatter Created 56 | . 14 42 Used 46 | . 30 16 Decayed 38 | . . 38 Highest Spend 30 | . 30 16 Top 5 Hosts by Kills: G-47 Trooper (-10/Materials: 6) Game ------ Seed SystemGuidedWarhead Manual? 0 Play Time 00:10:29 Cumulative 158.3 hours Start 2025.05.28 @ 17:04:28 End 2025.05.28 @ 17:12:32 Sessions 1 Manual Loads 0 Difficulty Rogue Special Mode Winter2022/Polymind Game No. 237 Rogue 234 Adventurer 3 Explorer 0 Win Type - Total 1 Types 1/0/0/0/0/0/0/0/0/0 Lore% 48 Gallery% 56 Achievement% 45 Wizard Run 0 Options --------- Layout 0 ASCII 0 Keyboard 0 Movement Mouse Keybinds 0 Fullscreen 2 Font 18/SmallcapsGlow Map View 76x50 Zoom Use 0% Tactical HUD 1 Map Filters NONE Filters NONE Steam 1 RUN: c1addaf6-3e64-4002-a1c5-912d5f5f636c